bitfinex/quotes_ETHUSD_20230109
["timestamp","ask_amount","ask_price","bid_price","bid_amount"]
[1673288139272,44.70986492,1344.1,1344.0,33.43739169]
[1673288139767,48.04882947,1344.1,1344.0,33.43739169]
[1673288141394,44.70986492,1344.1,1344.0,33.43739169]
[1673288141617,48.0488216,1344.1,1344.0,33.43739169]
[1673288141830,44.70986492,1344.1,1344.0,33.43739169]
[1673288142037,48.04823089,1344.1,1344.0,33.43739169]
[1673288143102,48.04822687,1344.1,1344.0,33.43739169]
[1673288143493,44.70986492,1344.1,1344.0,33.43739169]
[1673288144266,48.04782751,1344.1,1344.0,33.43739169]
[1673288144716,53.26180939,1344.1,1344.0,33.43739169]
[1673288145000,53.26180939,1344.1,1344.0,22.85968821]
[1673288145001,57.36866647,1344.1,1344.0,22.85968821]
[1673288145530,52.1598468,1344.1,1344.0,22.85968821]
[1673288146375,50.83168459,1344.1,1344.0,22.85968821]
[1673288146845,56.09901831,1344.1,1344.0,22.85968821]
[1673288147258,50.83168459,1344.1,1344.0,22.85968821]
[1673288147472,46.94586492,1344.1,1344.0,22.85968821]
[1673288147733,50.83168459,1344.1,1344.0,22.85968821]
[1673288147945,56.09901831,1344.1,1344.0,12.91890821]
[1673288148111,56.12236233,1344.1,1344.0,7.95203821]
[1673288148321,56.12236233,1344.1,1344.0,0.06400821]
[1673288148544,56.12236233,1344.1,1343.9,0.05058098]
[1673288148545,11.322,1344.0,1343.9,0.05058098]
[1673288148754,52.11375748,1344.0,1343.9,0.05058098]
[1673288148947,48.7759934,1344.0,1343.9,0.05058098]
[1673288149180,56.57888009,1344.0,1343.9,0.05058098]
[1673288149383,53.2409934,1344.0,1343.9,0.05058098]
[1673288149596,57.72255908,1344.0,1343.9,0.05058098]
[1673288150003,54.39493941,1344.0,1343.9,0.05058098]
[1673288150226,66.89183632,1344.0,1343.9,0.05058098]
[1673288150447,57.73237773,1344.0,1343.9,0.05058098]
[1673288151017,54.23237773,1344.0,1343.9,0.05058098]
[1673288151187,44.37845497,1344.0,1343.9,0.05058098]
[1673288151376,37.00707064,1344.0,1343.9,0.05058098]
[1673288151571,40.34450896,1344.0,1343.9,0.05058098]
[1673288152463,37.00707064,1344.0,1343.9,0.05058098]
[1673288153509,31.96646712,1344.0,1343.9,0.05058098]
[1673288153888,17.08552712,1344.0,1343.9,0.05058098]
[1673288154093,31.96646712,1344.0,1343.9,0.05058098]
[1673288154323,31.96712807,1344.0,1343.9,0.05058098]
[1673288154807,17.08618807,1344.0,1343.9,0.05058098]
[1673288156091,24.52665807,1344.0,1343.9,0.05058098]
[1673288156770,31.96712807,1344.0,1343.9,0.05058098]
[1673288157721,29.18507064,1344.0,1343.9,0.05058098]
[1673288159164,33.83950896,1344.0,1343.9,0.05058098]
[1673288159833,40.55843172,1344.0,1343.9,0.05058098]
[1673288160205,41.11663172,1344.0,1343.9,0.05058098]
[1673288160839,35.72770896,1344.0,1343.9,0.05058098]
[1673288161278,41.11663172,1344.0,1343.9,0.05058098]
[1673288161473,37.7791934,1344.0,1343.9,0.05058098]
[1673288162237,53.40747572,1344.0,1343.9,0.05058098]
[1673288162443,54.76830658,1344.0,1343.9,0.05058098]
[1673288162611,50.88248691,1344.0,1343.9,0.05058098]
[1673288163047,54.22379233,1344.0,1343.9,0.05058098]
[1673288164034,48.83486957,1344.0,1343.9,0.05058098]
[1673288164609,36.54786957,1344.0,1343.9,0.05058098]
[1673288164966,36.31786957,1344.0,1343.9,0.05058098]
[1673288165369,35.73157606,1344.0,1343.9,0.05058098]
[1673288165794,32.39027064,1344.0,1343.9,0.05058098]
[1673288166823,35.73157606,1344.0,1343.9,0.05058098]
[1673288167038,34.40157606,1344.0,1343.9,0.05058098]
[1673288167912,11.87630556,1344.0,1343.9,3.09458098]
[1673288168127,8.87630556,1344.0,1343.9,10.53560098]
[1673288168315,6.09147153,1344.0,1343.9,3.16058098]
[1673288168506,6.09147153,1344.0,1343.9,3.09458098]
[1673288168732,2.29381089,1344.0,1343.9,7.10600608]
[1673288168935,2.78434141,1344.0,1343.9,26.81364098]
[1673288169331,2.78434141,1344.0,1343.9,11.93160098]
[1673288169545,2.78434141,1344.0,1343.9,4.49058098]
[1673288169755,2.78434141,1344.0,1343.9,4.42458098]
[1673288170191,2.78434141,1344.0,1343.9,5.00663908]
[1673288170437,2.78434141,1344.0,1343.9,5.07263908]
[1673288170648,1.11372994,1344.0,1343.9,5.06899171]
[1673288170859,1.11372994,1344.0,1343.9,16.01001171]
[1673288171144,1.11372994,1344.0,1343.9,8.56899171]
[1673288171598,2.78434141,1344.0,1343.9,5.06899171]
[1673288171983,11.33889236,1344.0,1343.9,5.06899171]
[1673288172189,7.762083,1344.0,1343.9,1.44293361]
[1673288172437,7.762083,1344.0,1343.9,1.37693361]
[1673288172769,3.96442236,1344.0,1343.9,1.37693361]
[1673288173096,3.96442236,1344.0,1343.9,8.81795361]
[1673288173097,1.67061147,1344.0,1343.9,8.81795361]
[1673288173260,2.78441097,1344.0,1343.9,3.95261497]
[1673288173455,1.67061147,1344.0,1343.9,3.88661497]
[1673288173800,2.78440287,1344.0,1343.9,15.76865497]
[1673288173977,1.67061147,1344.0,1343.9,17.16465497]
[1673288174347,1.67061147,1344.0,1343.9,2.28261497]
[1673288174348,2.78443417,1344.0,1343.9,2.28261497]
[1673288174556,1.67061147,1344.0,1343.9,2.21661497]
[1673288175293,1.67061147,1344.0,1343.9,9.65763497]
[1673288175449,1.67061147,1344.0,1343.9,2.28261497]
[1673288175658,1.67061147,1344.0,1343.9,2.21661497]
[1673288175910,1.67061147,1344.0,1343.9,9.65763497]
[1673288176131,1.67061147,1344.0,1343.9,2.28261497]
[1673288176352,1.67061147,1344.0,1343.9,9.65763497]
[1673288176532,1.67061147,1344.0,1343.9,9.72363497]
[1673288177079,3.89842236,1344.0,1343.9,9.72363497]
[1673288177284,1.67061147,1344.0,1343.9,1.396]
[1673288177547,1.67061147,1344.0,1343.9,8.77102]
[1673288177762,1.67061147,1344.0,1343.9,8.83702]
[1673288177920,1.67061147,1344.0,1343.9,1.396]
[1673288178281,2.78403481,1344.0,1343.9,23.65306]
[1673288178493,1.11342334,1344.0,1343.9,26.968088]
[1673288179608,1.11542334,1344.0,1343.9,26.966088]
[1673288179863,1.11342334,1344.0,1343.9,26.968088]
[1673288180695,2.78403481,1344.1,1343.9,26.968088]
[1673288180911,2.78403481,1344.1,1344.0,4.0268088]
[1673288181108,2.78403481,1344.1,1344.0,26.3482188]
[1673288181286,2.78356805,1344.1,1344.0,26.4142188]
[1673288181807,5.07864492,1344.2,1344.0,26.4142188]
[1673288181808,2.84956805,1344.2,1344.0,27.7442188]
[1673288182028,1.11295658,1344.2,1344.1,5.43342188]
[1673288182264,3.96442236,1344.3,1344.1,31.31918188]
[1673288182265,2.84956805,1344.3,1344.1,31.31918188]
[1673288182436,2.78356805,1344.3,1344.2,2.657]
[1673288182647,2.78356805,1344.3,1344.2,26.61881419]
[1673288182648,1.11295658,1344.3,1344.2,26.61881419]
[1673288182857,1.11295658,1344.3,1344.2,26.68481419]
[1673288183111,1.11295658,1344.3,1344.2,30.18481419]
[1673288184559,1.11495658,1344.3,1344.2,30.18281419]
[1673288184775,1.11295658,1344.3,1344.2,30.18481419]
[1673288186576,1.11295658,1344.3,1344.2,26.68481419]
[1673288187677,2.78356805,1344.4,1344.2,26.68481419]
[1673288187899,2.78356805,1344.4,1344.3,3.99848142]
[1673288188198,2.78356805,1344.4,1344.3,29.81491142]
[1673288188410,2.78356805,1344.4,1344.3,29.88091142]
[1673288188585,1.11295658,1344.4,1344.3,26.38091142]
[1673288189731,2.78356805,1344.4,1344.3,26.38091142]
[1673288190464,2.78356805,1344.4,1344.3,1.396]
[1673288190689,1.67061147,1344.4,1344.3,1.33]
[1673288190903,3.89842236,1344.4,1344.1,17.31083]
[1673288191114,1.1109496,1344.3,1344.2,14.87812]
[1673288191350,1.1109496,1344.3,1344.2,14.94412]
[1673288191565,1.1109496,1344.4,1344.2,14.94412]
[1673288191782,3.33956107,1344.5,1344.2,23.71348]
[1673288191936,1.1109496,1344.4,1344.2,26.932375]
[1673288192514,3.33956107,1344.5,1344.2,26.932375]
[1673288192690,1.1109496,1344.4,1344.2,19.493015]
[1673288192901,1.1109496,1344.4,1344.2,12.053865]
[1673288193109,8.5492096,1344.4,1344.2,4.614895]
[1673288193302,1.1769496,1344.4,1344.2,1.33]
[1673288193512,1.1109496,1344.4,1344.2,1.33]
[1673288193986,2.78156107,1344.4,1344.2,8.76912]
[1673288194143,2.78156107,1344.4,1344.2,8.83512]
[1673288194931,2.78156107,1344.4,1344.2,16.27424]
[1673288196696,2.78356107,1344.4,1344.2,16.27224]
[1673288196907,2.78156107,1344.4,1344.2,16.27424]
[1673288197379,1.1109496,1344.3,1344.2,16.27424]
[1673288197541,2.78156107,1344.4,1344.2,16.27424]
[1673288197750,1.1109496,1344.3,1344.2,16.27424]
[1673288198396,1.1109496,1344.3,1344.2,23.7136]
[1673288198821,1.1109496,1344.3,1344.2,22.3836]
[1673288200586,1.1109496,1344.3,1344.2,14.94424]
[1673288201893,1.1109496,1344.3,1344.2,22.3836]
[1673288202106,1.1129496,1344.3,1344.2,22.3816]
[1673288202421,1.1109496,1344.3,1344.2,22.3836]
[1673288202942,1.1109496,1344.3,1344.2,14.94424]
[1673288203378,1.1109496,1344.3,1344.2,22.3836]
[1673288203904,1.1769496,1344.4,1344.2,31.17335509]
[1673288204049,2.84756107,1344.5,1344.3,1.33]
[1673288204257,1.1109496,1344.4,1344.2,31.16535509]
[1673288204516,1.1109496,1344.4,1344.3,1.33]
[1673288204734,1.67061147,1344.5,1344.3,1.33]
[1673288204735,2.78156107,1344.5,1344.3,3.09168751]
[1673288204945,2.78156107,1344.5,1344.4,22.31478]
[1673288205119,2.78156107,1344.5,1344.4,22.38078]
[1673288206102,2.78242494,1344.5,1344.4,22.38078]
[1673288206471,1.67061147,1344.5,1344.4,22.38078]
[1673288206837,3.89842236,1344.5,1344.4,22.38078]
[1673288207004,1.67061147,1344.5,1344.4,22.38078]
[1673288208421,3.89842236,1344.5,1344.4,22.38078]
[1673288208584,1.67061147,1344.5,1344.4,22.38078]
[1673288209216,1.67061147,1344.5,1344.4,25.67189975]
[1673288210625,3.89842236,1344.5,1344.4,25.67189975]
[1673288210801,1.67061147,1344.5,1344.4,25.67189975]
[1673288211569,2.78296024,1344.5,1344.4,25.67189975]
[1673288212369,1.67061147,1344.5,1344.4,25.67189975]
[1673288215125,2.78336992,1344.5,1344.4,25.67189975]
[1673288215292,2.84936992,1344.6,1344.4,28.33089975]
[1673288215612,2.78336992,1344.6,1344.5,26.47618998]
[1673288215781,2.78336992,1344.6,1344.5,30.04218998]
[1673288216235,1.11275845,1344.6,1344.5,30.04218998]
[1673288216552,2.78336992,1344.6,1344.5,30.04218998]
[1673288219138,2.84936992,1344.7,1344.5,30.04218998]
[1673288219395,2.78348686,1344.7,1344.6,23.62945]
[1673288219599,1.67061147,1344.7,1344.6,23.69545]
[1673288219812,3.89842236,1344.7,1344.6,27.442074]
[1673288220124,1.67061147,1344.7,1344.6,27.442074]
[1673288220561,1.67061147,1344.7,1344.6,28.772074]
[1673288220562,1.11287354,1344.7,1344.6,28.772074]
[1673288220863,1.11287354,1344.7,1344.6,32.272074]
[1673288222285,3.54e-06,1344.7,1344.6,32.272074]
[1673288222601,1.67061147,1344.8,1344.7,3.5]
[1673288222771,1.67061147,1344.8,1344.7,32.1990074]
[1673288223088,3.96442236,1344.9,1344.7,32.2650074]
[1673288223240,3.35117312,1345.0,1344.9,3.5]
[1673288223465,1.05736223,1345.0,1344.9,1.33]
[1673288223700,0.066,1345.1,1344.9,10.09449]
[1673288223908,2.29381089,1345.2,1345.0,25.965269]
[1673288224099,2.29381089,1345.2,1345.1,23.63317]
[1673288224100,2.22781089,1345.2,1345.1,23.63317]
[1673288224313,2.22781089,1345.2,1345.1,23.69917]
[1673288226128,4.27368584,1345.3,1345.1,23.69917]
[1673288226129,3.7166627,1345.3,1345.1,23.69917]
[1673288226336,3.0929627,1345.3,1345.2,1.33]
[1673288226749,3.0929627,1345.3,1345.2,26.001407]
[1673288226920,3.0929627,1345.3,1345.2,26.067407]
[1673288227770,0.86515181,1345.3,1345.2,26.067407]
[1673288228489,0.86515181,1345.3,1345.2,2.435917]
[1673288228490,3.0929627,1345.3,1345.2,2.435917]
[1673288228704,3.0929627,1345.3,1345.0,26.1214]
[1673288228912,2.22781089,1345.2,1345.0,16.4153]
[1673288229171,2.22781089,1345.2,1345.0,23.85016]
[1673288229541,2.22781089,1345.2,1345.0,7.50086]
[1673288229754,2.22781089,1345.2,1345.0,14.9358]
[1673288230001,2.22781089,1345.2,1345.0,22.37074]
[1673288230324,2.22781089,1345.2,1345.0,0.066]
[1673288230548,2.22781089,1345.2,1344.8,44.24968]
[1673288230755,2.22781089,1345.2,1344.9,14.87093]
[1673288230927,2.22781089,1345.2,1344.9,14.93693]
[1673288231114,2.22781089,1345.2,1344.9,7.50144]
[1673288231333,5.72781089,1345.2,1344.9,14.93693]
[1673288231654,2.29381089,1345.2,1344.9,22.37242]
[1673288231868,2.22781089,1345.2,1344.9,22.37242]
[1673288232324,2.22781089,1345.2,1344.9,0.066]
[1673288232325,7.68859215,1345.1,1344.9,0.066]
[1673288232635,7.68859215,1345.1,1344.8,0.066]
[1673288232636,3.89093151,1345.0,1344.8,0.066]
[1673288232844,3.89093151,1345.0,1344.7,14.9389]
[1673288232845,1.1087742,1344.9,1344.7,14.9389]
[1673288233073,1.1087742,1344.9,1344.8,7.43604]
[1673288233235,1.1087742,1344.9,1344.8,0.066]
[1673288233427,1.1087742,1344.9,1344.7,7.50234]
[1673288233850,1.1087742,1344.9,1344.7,0.066]
[1673288233851,2.77189482,1344.9,1344.7,0.066]
[1673288234104,2.77189482,1344.9,1344.7,7.43654]
[1673288234313,2.77189482,1344.9,1344.7,7.50254]
[1673288234480,1.1087742,1344.9,1344.7,14.93914]
[1673288234689,2.77189482,1344.9,1344.7,0.066]
[1673288234962,2.77189482,1344.9,1344.6,25.09369]
[1673288235125,1.1087742,1344.9,1344.6,30.249989]
[1673288235331,2.77189482,1344.9,1344.6,22.37709]
[1673288235670,1.6666742,1344.9,1344.6,22.37709]
[1673288236320,1.1087742,1344.9,1344.6,22.37709]
[1673288238056,2.77189482,1344.9,1344.6,22.37709]
[1673288238298,2.77189482,1344.9,1344.8,22.30812]
[1673288238299,1.1087742,1344.9,1344.8,22.30812]
[1673288238470,1.1107742,1344.9,1344.8,22.37212]
[1673288238682,1.1087742,1344.9,1344.8,22.37412]
[1673288239116,1.1087742,1344.9,1344.8,0.066]
[1673288239325,1.1087742,1344.9,1344.7,7.50229]
[1673288239571,14.87208,1344.8,1344.7,0.066]
[1673288239792,1.1747742,1344.8,1344.5,15.74776]
[1673288239947,1.10653652,1344.8,1344.6,7.43698]
[1673288240156,1.10653652,1344.8,1344.6,7.50298]
[1673288240368,1.10653652,1344.8,1344.6,22.37728]
[1673288240609,1.10653652,1344.8,1344.6,26.183147]
[1673288242255,7.75459215,1344.9,1344.6,26.183147]
[1673288242256,1.72912062,1344.9,1344.6,26.183147]
[1673288242485,2.78561089,1345.0,1344.6,29.683147]
[1673288242486,3.95693151,1345.0,1344.6,29.683147]
[1673288242827,3.89093151,1345.0,1344.6,31.001147]
[1673288242988,1.66312062,1345.0,1344.7,3.1001147]
[1673288243202,3.89093151,1345.0,1344.8,7.43604]
[1673288243456,3.89093151,1345.0,1344.8,7.50204]
[1673288243843,3.89093151,1345.0,1344.8,14.93808]
[1673288244052,3.89093151,1345.0,1344.8,26.01521847]
[1673288245301,1.66312062,1344.9,1344.8,26.01521847]
[1673288246522,3.95693151,1345.0,1344.8,26.01521847]
[1673288246674,1.66312062,1344.9,1344.8,26.01521847]
[1673288246896,2.22781089,1345.0,1344.8,26.01521847]
[1673288246897,3.95693151,1345.0,1344.8,26.01521847]
[1673288247084,3.89093151,1345.0,1344.8,26.01521847]
[1673288248181,1.66312062,1344.9,1344.8,26.01521847]
[1673288250345,3.89093151,1344.9,1344.8,26.01521847]
[1673288250765,3.89093151,1344.9,1344.8,0.066]
[1673288250969,11.32642151,1344.9,1344.6,1.384]
[1673288251361,2.7746281,1344.8,1344.6,14.87377]
[1673288251494,2.7746281,1344.8,1344.6,22.37673]
[1673288251702,1.11150748,1344.7,1344.6,14.93977]
[1673288251919,1.11150748,1344.7,1344.6,18.134214]
[1673288252340,1.11150748,1344.7,1344.6,25.571364]
[1673288255754,1.11150748,1344.7,1344.6,10.697254]
[1673288255969,1.11150748,1344.7,1344.6,7.50315]
[1673288256122,2.7746281,1344.7,1344.6,22.37745]
[1673288256657,2.7746281,1344.7,1344.6,14.9403]
[1673288257592,10.2112281,1344.7,1344.6,0.066]
[1673288257805,11.39353151,1344.7,1344.5,9.6401]
[1673288258016,1.11259318,1344.6,1344.5,15.74769]
[1673288258378,1.11259318,1344.6,1344.5,0.066]
[1673288258569,1.11259318,1344.6,1344.4,14.94202]
[1673288258570,2.7757138,1344.6,1344.4,14.94202]
[1673288258780,2.7757138,1344.6,1344.5,7.4377]
[1673288258960,2.7757138,1344.6,1344.5,7.5037]
[1673288259334,1.11259318,1344.6,1344.5,22.3791]
[1673288259487,1.11259318,1344.6,1344.5,18.273106]
[1673288259930,1.11259318,1344.6,1344.5,10.835406]
[1673288260122,1.11259318,1344.6,1344.5,18.273106]
[1673288260354,1.11259318,1344.6,1344.5,10.835406]
[1673288260566,1.11259318,1344.6,1344.5,14.9378381]
[1673288261113,1.11259318,1344.6,1344.5,22.3755381]
[1673288261951,1.11259318,1344.6,1344.5,14.9378381]
[1673288262331,1.11259318,1344.6,1344.5,22.3755381]
[1673288263113,1.11259318,1344.6,1344.5,14.9378381]
[1673288263271,1.11259318,1344.6,1344.5,29.20687591]
[1673288263481,1.11259318,1344.6,1344.5,14.9378381]
[1673288263737,1.11259318,1344.6,1344.5,22.3755381]
[1673288264267,1.11259318,1344.6,1344.5,14.9378381]
[1673288265371,2.7757138,1344.6,1344.5,14.9378381]
[1673288267491,2.7757138,1344.6,1344.5,22.3755381]
[1673288267927,1.66312062,1344.6,1344.5,0.066]
[1673288268140,1.66312062,1344.6,1344.3,18.796]
[1673288268347,1.1138062,1344.5,1344.3,0.066]
[1673288268559,10.21469682,1344.5,1344.2,26.1882]
[1673288268781,1.1138062,1344.3,1344.2,26.1882]
[1673288268992,2.77692682,1344.3,1344.2,4.88634]
[1673288269152,3.89093151,1344.3,1344.1,0.066]
[1673288269365,1.11408269,1344.2,1344.0,0.05428361]
[1673288270043,2.84320331,1344.3,1344.0,0.05428361]
[1673288270254,2.77720331,1344.3,1344.0,0.05428361]
[1673288271100,6.15420331,1344.3,1344.0,0.05428361]
[1673288271268,6.22020331,1344.3,1344.0,0.05428361]
[1673288271834,6.22020331,1344.3,1344.0,7.49461361]
[1673288272041,6.22020331,1344.3,1344.0,15.00108361]
[1673288272199,2.84320331,1344.3,1344.0,15.00108361]
[1673288272410,2.77720331,1344.3,1344.0,0.12028361]
[1673288272621,2.77720331,1344.3,1344.0,0.05428361]
[1673288272878,2.77720331,1344.3,1344.0,7.49470361]
[1673288273085,6.57486395,1344.3,1344.0,7.56070361]
[1673288273408,6.64086395,1344.3,1344.0,15.00115361]
[1673288273572,6.64086395,1344.3,1344.0,7.56068361]
[1673288273782,6.64086395,1344.3,1344.0,7.56059361]
[1673288273783,1.11408269,1344.2,1344.0,7.56059361]
[1673288274105,1.11408269,1344.2,1344.0,15.00106361]
[1673288274334,1.11408269,1344.2,1344.0,22.44153361]
[1673288274511,6.64086395,1344.3,1344.0,22.44153361]
[1673288276411,4.97774333,1344.3,1344.0,22.44153361]
[1673288276613,4.91174333,1344.3,1344.0,22.44153361]
[1673288277074,0.05,1344.1,1344.0,22.44153361]
[1673288277288,4.97774333,1344.3,1344.1,0.05]
[1673288277500,4.91174333,1344.3,1344.1,14.92917]
[1673288277709,4.91174333,1344.3,1344.1,14.99517]
[1673288279208,4.91174333,1344.3,1344.1,7.55582]
[1673288279385,5.46984333,1344.3,1344.1,22.43566]
[1673288279594,5.53584333,1344.3,1344.1,22.43566]
[1673288279807,4.42176064,1344.3,1344.1,22.43566]
[1673288280014,4.35576064,1344.3,1344.1,22.43566]
[1673288280367,4.35576064,1344.3,1344.1,14.99574]
[1673288280850,5.46984333,1344.3,1344.1,0.11255349]
[1673288281067,3.79766064,1344.2,1344.1,0.04655349]
[1673288281820,3.79766064,1344.2,1344.1,7.48647349]
[1673288282023,3.79766064,1344.2,1344.1,7.55247349]
[1673288282436,3.79766064,1344.2,1344.1,0.11255349]
[1673288282642,3.79766064,1344.2,1344.1,7.48647349]
[1673288282922,3.79766064,1344.2,1344.1,7.55247349]
[1673288284161,3.79966064,1344.2,1344.1,7.55047349]
[1673288284367,3.79766064,1344.2,1344.1,7.55247349]
[1673288284682,4.35124497,1344.2,1344.1,0.11255349]
[1673288284881,31.34150766,1344.2,1344.1,0.04655349]
[1673288285099,23.96814766,1344.2,1344.1,0.04655349]
[1673288285270,16.52878766,1344.2,1344.1,0.04655349]
[1673288286316,31.40750766,1344.2,1344.1,0.04655349]
[1673288286526,34.38962828,1344.2,1344.1,0.04655349]
[1673288286760,17.84778766,1344.2,1344.1,0.04655349]
[1673288286952,10.40842766,1344.2,1344.1,0.04655349]
[1673288288250,17.84778766,1344.2,1344.1,0.04655349]
[1673288289733,10.40842766,1344.2,1344.1,0.04655349]
[1673288289891,10.40842766,1344.2,1344.1,7.48647349]
[1673288290099,10.40842766,1344.2,1344.1,0.11255349]
[1673288290329,10.40842766,1344.2,1344.1,0.04655349]
[1673288290758,7.97534497,1344.2,1344.1,22.36631349]
[1673288291087,7.97534497,1344.2,1344.1,14.99239349]
[1673288291088,7.42176064,1344.2,1344.1,14.99239349]
[1673288291294,7.42176064,1344.2,1344.1,0.11255349]
[1673288291504,6.86366064,1344.2,1344.1,0.04655349]
[1673288291713,6.86366064,1344.2,1344.1,7.48647349]
[1673288291924,6.86366064,1344.2,1344.1,0.11255349]
[1673288292146,6.86366064,1344.2,1344.1,14.92639349]
[1673288292324,6.86366064,1344.2,1344.1,0.11255349]
[1673288292507,6.86366064,1344.2,1344.1,0.04655349]
[1673288293081,15.41710333,1344.2,1344.1,0.04655349]
[1673288293412,30.85392333,1344.2,1344.1,0.04655349]
[1673288293554,32.51704395,1344.2,1344.1,0.04655349]
[1673288294769,39.94801487,1344.2,1344.1,0.04655349]
[1673288294979,42.7328489,1344.2,1344.1,0.04655349]
[1673288295478,48.96367327,1344.2,1344.1,0.04655349]
[1673288296026,49.19367327,1344.2,1344.1,0.04655349]
[1673288296217,57.94278497,1344.2,1344.1,0.04655349]
[1673288297073,63.73478497,1344.2,1344.1,0.04655349]
[1673288297660,63.73214581,1344.2,1344.1,0.04655349]
[1673288298411,24.46737835,1344.2,1344.1,0.04655349]
[1673288298948,36.16387835,1344.2,1344.1,0.04655349]
[1673288299332,43.60323835,1344.2,1344.1,0.04655349]
[1673288299544,16.49557835,1344.2,1344.1,0.04655349]
[1673288299859,23.93493835,1344.2,1344.1,0.04655349]
[1673288300504,21.15010432,1344.2,1344.1,0.04655349]
[1673288300717,28.58946432,1344.2,1344.1,0.04655349]
[1673288301369,38.17702309,1344.2,1344.1,0.04655349]
[1673288301828,35.95534721,1344.2,1344.1,0.04655349]
[1673288302288,41.27671055,1344.2,1344.1,0.04655349]
[1673288302499,41.26982845,1344.2,1344.1,0.04655349]
[1673288302716,49.49522845,1344.2,1344.1,0.04655349]
[1673288302939,54.53927652,1344.2,1344.1,0.04655349]
[1673288303156,62.98356202,1344.2,1344.1,0.04655349]
[1673288303369,59.8722566,1344.2,1344.1,0.04655349]
[1673288303547,63.21356202,1344.2,1344.1,0.04655349]
[1673288304393,59.8722566,1344.2,1344.1,0.04655349]
[1673288305852,63.21356202,1344.2,1344.1,0.04655349]
[1673288306693,62.98356202,1344.2,1344.1,0.04655349]
[1673288310163,61.65456202,1344.2,1344.1,0.04655349]
[1673288310372,61.65456202,1344.2,1344.0,0.05428361]
[1673288310373,71.97892202,1344.2,1344.0,0.05428361]
[1673288310617,34.45814095,1344.1,1344.0,0.05428361]
[1673288310796,56.84390095,1344.1,1344.0,0.05428361]
[1673288311018,57.48188103,1344.1,1344.0,0.05428361]
[1673288312807,54.14396406,1344.1,1344.0,0.05428361]
[1673288316893,52.81796406,1344.1,1344.0,0.05428361]
[1673288317541,39.53160072,1344.1,1344.0,0.05428361]
[1673288317729,41.75485726,1344.1,1344.0,0.05428361]
[1673288317937,38.97340072,1344.1,1344.0,0.05428361]
[1673288318360,33.93343905,1344.1,1344.0,0.05428361]
[1673288319124,32.60343905,1344.1,1344.0,0.05428361]
[1673288320195,29.82140072,1344.1,1344.0,0.05428361]
[1673288320413,32.60435404,1344.1,1344.0,0.05428361]
[1673288320772,14.94156072,1344.1,1344.0,0.05428361]
[1673288320937,17.72450867,1344.1,1344.0,0.05428361]
[1673288321464,32.60434867,1344.1,1344.0,0.05428361]
[1673288321628,31.13840072,1344.1,1344.0,0.05428361]
[1673288321966,3.5,1344.0,1343.7,4.04505293]
[1673288322189,14.02237156,1343.8,1343.6,0.066]
[1673288322376,14.02237156,1343.8,1343.5,22.46239099]
[1673288322377,3.79766064,1343.7,1343.5,22.46239099]
[1673288322581,3.79766064,1343.6,1343.5,22.46439099]
[1673288322881,3.79766064,1343.6,1343.5,15.02131099]
[1673288323100,3.79766064,1343.6,1343.5,15.01931099]
[1673288323101,3.79966064,1343.6,1343.5,15.01931099]
[1673288323306,3.79766064,1343.6,1343.5,15.02131099]
[1673288323739,3.79766064,1343.6,1343.5,7.57837099]
[1673288324162,11.24035064,1343.6,1343.5,0.13556099]
[1673288324373,3.86366064,1343.6,1343.5,0.06956099]
[1673288324610,3.79766064,1343.6,1343.5,0.06956099]
[1673288324775,11.24035064,1343.6,1343.5,0.06956099]
[1673288324987,12.41960301,1343.6,1343.5,0.06956099]
[1673288325245,19.86229301,1343.6,1343.5,0.06956099]
[1673288325651,27.30498301,1343.6,1343.5,0.06956099]
[1673288325848,28.97486156,1343.6,1343.5,0.06956099]
[1673288326057,31.97486156,1343.6,1343.5,0.06956099]
[1673288328065,30.30498301,1343.6,1343.5,0.06956099]
[1673288328727,41.64405628,1343.6,1343.5,0.06956099]
[1673288328938,44.76017635,1343.6,1343.4,0.05058098]
[1673288329156,18.47156223,1343.5,1343.4,0.05058098]
[1673288329386,40.86728223,1343.5,1343.4,0.05058098]
[1673288329734,32.74152652,1343.5,1343.4,0.05058098]
[1673288330186,34.41066313,1343.5,1343.4,0.05058098]
[1673288330618,53.15428223,1343.5,1343.4,0.05058098]
[1673288330851,54.35066231,1343.5,1343.4,0.05058098]
[1673288331000,51.5675314,1343.5,1343.4,0.05058098]
[1673288331214,52.34492684,1343.5,1343.4,0.05058098]
[1673288331537,52.90091187,1343.5,1343.4,0.05058098]
[1673288332119,50.11778096,1343.5,1343.4,0.05058098]
[1673288332304,52.89905001,1343.5,1343.4,0.05058098]
[1673288333268,15.787,1343.4,1343.0,7.94636816]
[1673288333418,3.79766064,1343.2,1343.0,7.94636816]
[1673288333771,11.6228867,1343.1,1343.0,0.09786816]
[1673288333972,1.89286756,1343.1,1343.0,0.03186816]
[1673288334178,1.82686756,1343.1,1343.0,25.13489816]
[1673288334406,1.82686756,1343.1,1343.0,25.20089816]
[1673288334760,1.82686756,1343.1,1343.0,28.81931603]
[1673288336101,1.82686756,1343.1,1343.0,30.14931603]
[1673288336313,0.066,1343.3,1343.0,30.14931603]
[1673288336472,3.79766064,1343.2,1343.0,30.14931603]
[1673288337121,3.79966064,1343.2,1343.0,30.14731603]
[1673288337318,0.066,1343.3,1343.1,6.5149316]
[1673288337527,3.79766064,1343.3,1343.2,22.3347]
[1673288337802,3.79766064,1343.3,1343.2,22.4007]
[1673288338007,3.79766064,1343.3,1343.2,25.29226316]
[1673288339635,3.79766064,1343.3,1343.2,17.84736316]
[1673288339823,3.79766064,1343.3,1343.2,14.9558]
[1673288340038,3.79766064,1343.3,1343.2,14.7058]
[1673288340475,3.79766064,1343.3,1343.2,22.1507]
[1673288340799,3.79766064,1343.3,1343.2,14.7058]
[1673288341242,3.79766064,1343.3,1343.2,7.2609]
[1673288341455,26.13071064,1343.3,1343.2,0.066]
[1673288341662,26.13071064,1343.3,1343.0,9.33256816]
[1673288341663,26.5830767,1343.3,1343.0,9.33256816]
[1673288341871,3.79766064,1343.2,1343.0,16.77851816]
[1673288342308,3.79766064,1343.2,1343.0,23.76583816]
[1673288344216,3.79766064,1343.1,1343.0,0.09786816]
[1673288344428,4.1774267,1343.1,1343.0,0.03186816]
[1673288344744,3.79766064,1343.1,1343.0,0.03186816]
[1673288345572,26.13404064,1343.1,1343.0,0.03186816]
[1673288345753,18.75458064,1343.1,1343.0,0.03186816]
[1673288345966,11.30912064,1343.1,1343.0,0.03186816]
[1673288346801,3.86366064,1343.1,1343.0,0.03186816]
[1673288347042,3.79766064,1343.1,1343.0,0.03186816]
[1673288347318,11.24312064,1343.1,1343.0,0.03186816]
[1673288347577,3.86366064,1343.1,1343.0,0.03186816]
[1673288347885,3.79766064,1343.1,1343.0,0.03186816]
[1673288348276,11.24312064,1343.1,1343.0,0.03186816]
[1673288348497,3.86366064,1343.1,1343.0,0.03186816]